fUSD/lending_fUSD_20260127
["ID","MTS","AMOUNT","RATE_DAILY","PERIOD"]
[403775630,1769533838087,-353.97119535,0.00016438,2]
[403775631,1769533838195,-121.34389985,0.00016438,2]
[403775632,1769533838205,-500.0,0.00016438,2]
[403775633,1769533838215,-467.02409251,0.00016438,2]
[403775634,1769533838227,-32.97590749,0.00016438,2]
[403775635,1769533838236,-500.0,0.00016438,2]
[403775636,1769533838245,-500.0,0.00016438,2]
[403775637,1769533838260,-500.0,0.00016438,2]
[403775638,1769533838270,-500.0,0.00016438,2]
[403775639,1769533838280,-500.0,0.00016438,2]
[403775640,1769533838289,-500.0,0.00016438,2]
[403775642,1769533838301,-500.0,0.00016438,2]
[403775644,1769533838310,-500.0,0.00016438,2]
[403775646,1769533838320,-500.0,0.00016438,2]
[403775647,1769533838330,-500.0,0.00016438,2]
[403775649,1769533838339,-500.0,0.00016438,2]
[403775651,1769533838349,-500.0,0.00016438,2]
[403775653,1769533838359,-500.0,0.00016438,2]
[403775655,1769533838369,-500.0,0.00016438,2]
[403775657,1769533838379,-500.0,0.00016438,2]
[403775659,1769533838388,-500.0,0.00016438,2]
[403775661,1769533838399,-500.0,0.00016438,2]
[403775663,1769533838408,-500.0,0.00016438,2]
[403775665,1769533838418,-500.0,0.00016438,2]
[403775667,1769533838428,-500.0,0.00016438,2]
[403775669,1769533838438,-231.97345614,0.00016438,2]
[403775671,1769533838448,-500.0,0.00016438,2]
[403775673,1769533838457,-500.0,0.00016438,2]
[403775675,1769533838467,-500.0,0.00016438,2]
[403775679,1769533838476,-500.0,0.00016438,2]
[403775683,1769533838486,-500.0,0.00016438,2]
[403775684,1769533838496,-500.0,0.00016438,2]
[403775686,1769533838506,-500.0,0.00016438,2]
[403775689,1769533838515,-500.0,0.00016438,2]
[403775692,1769533838527,-500.0,0.00016438,2]
[403775694,1769533838537,-500.0,0.00016438,2]
[403775696,1769533838547,-500.0,0.00016438,2]
[403775698,1769533838557,-500.0,0.00016438,2]
[403775700,1769533838566,-500.0,0.00016438,2]
[403775702,1769533838577,-500.0,0.00016438,2]
[403775704,1769533838587,-500.0,0.00016438,2]
[403775706,1769533838596,-500.0,0.00016438,2]
[403775708,1769533838605,-500.0,0.00016438,2]
[403775710,1769533838615,-500.0,0.00016438,2]
[403775712,1769533838624,-500.0,0.00016438,2]
[403775714,1769533838634,-500.0,0.00016438,2]
[403775716,1769533838643,-500.0,0.00016438,2]
[403775718,1769533838653,-500.0,0.00016438,2]
[403775720,1769533838662,-200.0,0.00016438,2]
[403775722,1769533838671,-150.0039143,0.00016604,2]
[403775724,1769533838681,-195.0,0.00016604,2]
[403775726,1769533838691,-250.0,0.00016604,2]
[403775728,1769533838700,-195.0,0.00016604,2]
[403775730,1769533838710,-351.00000017,0.00016604,2]
[403775732,1769533838719,-195.0,0.00016604,2]
[403775734,1769533838729,-151.0,0.00016659,2]
[403775736,1769533838738,-250.0,0.00017,2]
[403775738,1769533838747,-151.0,0.00017008,2]
[403775740,1769533838757,-151.0,0.00017008,2]
[403775742,1769533838766,-151.0,0.00017038,2]
[403775744,1769533838776,-251.51442999,0.00017767,2]
[403775746,1769533838787,-150.0039143,0.00017928,2]
[403775748,1769533838797,-393.0,0.00018,2]
[403775750,1769533838807,-312.0,0.00018,2]
[403775752,1769533838817,-393.0,0.00018,2]
[403775754,1769533838827,-393.0,0.00018,2]
[403775756,1769533838836,-393.0,0.00018,2]
[403775758,1769533838848,-519.0,0.00018,2]
[403775760,1769533838858,-393.0,0.00018,2]
[403775762,1769533838867,-393.0,0.00018,2]
[403775764,1769533838878,-229.5,0.00018,2]
[403775766,1769533838887,-393.0,0.00018,2]
[403775768,1769533838897,-393.0,0.00018,2]
[403775770,1769533838906,-393.0,0.00018,2]
[403775772,1769533838916,-393.0,0.00018,2]
[403775774,1769533838925,-393.0,0.00018,2]
[403775776,1769533838935,-393.0,0.00018,2]
[403775778,1769533838945,-393.0,0.00018,2]
[403775780,1769533838954,-393.0,0.00018,2]
[403775782,1769533838963,-393.0,0.00018,2]
[403775784,1769533838973,-530.86962179,0.00018,2]
[403775785,1769533838983,-300.0,0.00019,2]
[403775787,1769533838994,-500.0,0.00019178,2]
[403775789,1769533839004,-500.0,0.00019178,2]
[403775791,1769533839014,-500.0,0.00019178,2]
[403775793,1769533839024,-219.12116106,0.00019178,2]
[403775795,1769533839034,-500.0,0.00019178,2]
[403775797,1769533839045,-500.0,0.00019178,2]
[403775800,1769533839056,-150.0039143,0.00019252,6]
[403775802,1769533839066,-2531.6,0.00020288,2]
[403775804,1769533839076,-370.3227898,0.00021001,2]
[403775805,1769533839087,-150.0,0.00021315,2]
[403775807,1769533839096,-500.0,0.00021315,2]
[403775810,1769533839107,-150.0,0.00021315,2]
[403775812,1769533839118,-150.0,0.00021315,2]
[403775814,1769533839134,-500.0,0.00021315,2]
[403775816,1769533839146,-150.0,0.00021315,2]
[403775818,1769533839166,-250.0,0.00021315,2]
[403775819,1769533839184,-500.0,0.00021315,2]
[403775822,1769533839193,-150.0,0.00021315,2]
[403775824,1769533839203,-150.0,0.00021315,2]
[403775826,1769533839212,-150.0,0.00021315,2]
[403775828,1769533839222,-150.0,0.00021315,2]
[403775830,1769533839232,-150.0,0.00021315,2]
[403775832,1769533839241,-150.0,0.00021315,2]
[403775834,1769533839251,-248.52684303,0.00021315,2]
[403775836,1769533839265,-150.0,0.00021315,2]
[403775838,1769533839274,-150.0,0.00021315,2]
[403775840,1769533839283,-500.0,0.0002137,2]
[403775842,1769533839293,-500.0,0.0002137,2]
[403775844,1769533839303,-150.0,0.0002137,2]
[403775846,1769533839312,-500.0,0.0002137,2]
[403775848,1769533839321,-150.0,0.0002137,2]
[403775850,1769533839331,-150.0,0.0002137,2]
[403775852,1769533839341,-150.0,0.0002137,2]
[403775854,1769533839351,-150.0,0.0002137,2]
[403775856,1769533839360,-150.0,0.0002137,2]
[403775858,1769533839370,-150.0,0.0002137,2]
[403775860,1769533839383,-150.0,0.0002137,2]
[403775863,1769533839415,-500.0,0.00021425,2]
[403775864,1769533839434,-150.0,0.00021425,2]
[403775866,1769533839446,-500.0,0.00021425,2]
[403775868,1769533839460,-183.0,0.00021425,2]
[403775870,1769533839472,-150.0,0.00021425,2]
[403775873,1769533839484,-200.0,0.00021425,2]
[403775874,1769533839494,-200.0,0.00021425,2]
[403775877,1769533839505,-200.0,0.00021425,2]
[403775879,1769533839516,-200.0,0.00021425,2]
[403775880,1769533839529,-200.0,0.00021425,2]
[403775882,1769533839540,-200.0,0.00021425,2]
[403775884,1769533839551,-331.96376164,0.00021479,2]
[403775886,1769533839562,-200.0,0.00021479,2]
[403775888,1769533839573,-500.0,0.00021479,2]
[403775890,1769533839584,-150.0,0.00021479,2]
[403775893,1769533839597,-500.0,0.00021534,2]
[403775895,1769533839610,-150.0,0.00021534,2]
[403775897,1769533839623,-500.0,0.00021589,2]
[403775899,1769533839634,-250.0,0.00021589,2]
[403775901,1769533839644,-500.0,0.00021644,2]
[403775903,1769533839656,-500.0,0.00021699,2]
[403775905,1769533839667,-500.0,0.00021753,2]
[403775907,1769533839676,-397.34853095,0.00021808,2]
[403775909,1769533839687,-2000.0,0.000219,2]
[403775911,1769533839699,-150.0039143,0.000219,15]
[403775913,1769533839712,-2000.0,0.00023,2]
[403775915,1769533839722,-519.0,0.00023167,6]
[403775917,1769533839734,-150.0039143,0.00023224,20]
[403775919,1769533839744,-522.63,0.00024174,2]
[403775921,1769533839753,-150.0039143,0.00024548,24]
[403775923,1769533839762,-150.0,0.00024658,2]
[403775925,1769533839771,-2000.0,0.000256,2]
[403775927,1769533839781,-698.24,0.00025698,2]
[403775929,1769533839791,-1000.0,0.00025842,2]
[403775931,1769533839800,-150.0039143,0.00025872,28]
[403775933,1769533839809,-1000.0,0.0002627,2]
[403775935,1769533839819,-200.0,0.0002647,2]
[403775937,1769533839828,-1157.15,0.0002657,120]
[403775939,1769533839838,-2000.0,0.000267,2]
[403775941,1769533839847,-698.24,0.00026983,2]
[403775943,1769533839856,-150.0,0.00027123,2]
[403775945,1769533839866,-150.0039143,0.00027196,32]
[403775947,1769533839876,-698.24,0.00028268,2]
[403775949,1769533839886,-519.0,0.00028333,11]
[403775951,1769533839897,-578.20924308,0.00028397,2]
[403775953,1769533839907,-209.40437684,0.00028397,2]
[403775955,1769533839917,-854.2589148,0.00028397,2]
[403775958,1769533839927,-250.0,0.00028397,2]
[403775959,1769533839936,-250.0,0.00028397,2]
[403775962,1769533839946,-250.0,0.00028397,2]
[403775964,1769533839955,-250.0,0.00028397,2]
[403775966,1769533839965,-334.54729591,0.00028397,2]
[403775968,1769533839974,-217.15233878,0.00028452,2]
[403775970,1769533839984,-225.18697532,0.00028507,2]
[403775971,1769533839993,-150.0039143,0.0002852,36]
[403775974,1769533840003,-233.51889341,0.00028562,2]
[403775976,1769533840012,-242.15909246,0.00028617,2]
[403775978,1769533840021,-251.11897888,0.00028672,2]
[403775979,1769533840030,-260.4103811,0.00028727,2]
[403775982,1769533840039,-270.0455652,0.00028782,2]
[403775984,1769533840049,-280.03725112,0.00028837,2]
[403775986,1769533840059,-290.39862941,0.00028892,2]
[403775988,1769533840068,-885.86649465,0.00028945,2]
[403775990,1769533840078,-301.1433787,0.00028947,2]
[403775992,1769533840087,-1000.0,0.00029072,2]
[403775994,1769533840096,-19633.99,0.00029105,2]
[403775996,1769533840105,-1000.0,0.000293,2]
[403775998,1769533840114,-698.24,0.00029553,2]
[403776000,1769533840123,-150.0,0.00029589,2]
[403776002,1769533840133,-477.66,0.000297,120]
[403776004,1769533840142,-150.0039143,0.00029844,40]
[403776006,1769533840151,-500.0,0.00029945,2]
[403776008,1769533840161,-3473.0,0.00029987,2]
[403776010,1769533840171,-1333.0,0.00029987,2]
[403776012,1769533840180,-615.0,0.00029987,2]
[403776014,1769533840190,-916.0,0.00029987,2]
[403776016,1769533840200,-1203.53,0.00029987,2]
[403776018,1769533840209,-2442.0,0.00029987,2]
[403776020,1769533840218,-4831.0,0.00029987,2]
[403776022,1769533840227,-6570.0,0.00029987,2]
[403776024,1769533840237,-487.0,0.00029987,2]
[403776026,1769533840247,-487.0,0.00029987,2]
[403776028,1769533840264,-487.0,0.00029987,2]
[403776030,1769533840278,-487.0,0.00029987,2]
[403776032,1769533840287,-487.0,0.00029987,2]
[403776034,1769533840296,-850.94,0.00029987,2]
[403776036,1769533840306,-300.0,0.00030221,2]
[403776038,1769533840316,-500.0,0.00030301,2]
[403776040,1769533840325,-2000.0,0.000304,2]
[403776042,1769533840335,-698.24,0.00030838,2]
[403776044,1769533840344,-332.05,0.00031084,2]
[403776046,1769533840353,-150.0039143,0.00031168,43]
[403776048,1769533840362,-150.0,0.00032055,2]
[403776050,1769533840371,-1000.0,0.00032302,2]
[403776052,1769533840380,-150.0039143,0.00032492,47]
[403776054,1769533840390,-150.0,0.00032797,2]
[403776056,1769533840399,-150.0,0.00032797,2]
[403776058,1769533840409,-429.0,0.00032877,2]
[403776060,1769533840418,-164.68269969,0.00032887,2]
[403776062,1769533840427,-429.0,0.00032932,2]
[403776064,1769533840436,-429.0,0.00032987,2]
[403776066,1769533840445,-1333.0,0.00032987,2]
[403776068,1769533840455,-615.0,0.00032987,2]
[403776070,1769533840464,-916.0,0.00032987,2]
[403776072,1769533840473,-2442.0,0.00032987,2]
[403776074,1769533840483,-4831.0,0.00032987,2]
[403776076,1769533840492,-6570.0,0.00032987,2]
[403776078,1769533840501,-1000.0,0.00033,2]
[403776080,1769533840511,-429.0,0.00033041,2]
[403776082,1769533840520,-429.0,0.00033096,2]
[403776084,1769533840529,-429.0,0.00033151,2]
[403776086,1769533840538,-429.0,0.00033206,2]
[403776088,1769533840547,-429.0,0.00033261,2]
[403776090,1769533840557,-429.0,0.00033315,2]
[403776092,1769533840566,-429.0,0.0003337,2]
[403776094,1769533840575,-477.66,0.00033413,120]
[403776096,1769533840584,-429.0,0.00033425,2]
[403776098,1769533840594,-429.0,0.0003348,2]
[403776100,1769533840603,-519.0,0.000335,16]
[403776102,1769533840612,-429.0,0.00033535,2]
[403776104,1769533840622,-429.0,0.00033589,2]
[403776106,1769533840632,-429.0,0.00033644,2]
[403776108,1769533840641,-429.0,0.00033699,2]
[403776110,1769533840651,-429.0,0.00033754,2]
[403776112,1769533840660,-7893.0,0.000338,5]
[403776114,1769533840669,-429.0,0.00033809,2]
[403776116,1769533840679,-150.0039143,0.00033816,51]
[403776118,1769533840688,-429.0,0.00033863,2]
[403776120,1769533840697,-429.0,0.00033918,2]
[403776122,1769533840706,-429.0,0.00033973,2]
[403776124,1769533840716,-429.0,0.00034028,2]
[403776126,1769533840725,-429.0,0.00034082,2]
[403776128,1769533840734,-2000.0,0.000341,2]
[403776130,1769533840744,-441.09486917,0.00034137,2]
[403776131,1769533840753,-151.0,0.00034316,5]
[403776132,1769533840762,-150.0,0.00034521,2]
[403776133,1769533840771,-5532.0,0.000351,5]
[403776134,1769533840780,-150.00391446,0.0003514,55]
[403776135,1769533840791,-1000.0,0.00035532,2]
[403776136,1769533840800,-500.0,0.00035616,7]
[403776137,1769533840810,-500.0,0.00035616,7]
[403776138,1769533840819,-500.0,0.00035616,7]
[403776139,1769533840829,-500.0,0.00035616,7]
[403776140,1769533840838,-500.0,0.00035616,7]
[403776141,1769533840847,-500.0,0.00035616,7]
[403776142,1769533840857,-500.0,0.00035616,7]
[403776143,1769533840866,-500.0,0.00035616,7]
[403776179,1769533841211,-500.0,0.00035616,7]
[403776181,1769533841220,-500.0,0.00035616,7]
[403776183,1769533841229,-500.0,0.00035616,7]
[403776185,1769533841238,-500.0,0.00035616,7]
[403776187,1769533841247,-500.0,0.00035616,7]
[403776189,1769533841262,-500.0,0.00035616,7]
[403776191,1769533841271,-500.0,0.00035616,7]
[403776193,1769533841280,-500.0,0.00035616,7]
[403776195,1769533841289,-500.0,0.00035616,7]
[403776197,1769533841299,-500.0,0.00035616,7]
[403776199,1769533841308,-500.0,0.00035616,7]
[403776201,1769533841317,-500.0,0.00035616,7]
[403776203,1769533841328,-366.23463366,0.00035616,7]
[403776205,1769533841337,-500.0,0.00035616,7]
[403776207,1769533841345,-500.0,0.00035616,7]
[403776209,1769533841354,-500.0,0.00035616,7]
[403776211,1769533841363,-273.30918966,0.00035616,7]
[403776213,1769533841373,-500.0,0.00035616,7]
[403776215,1769533841382,-500.0,0.00035616,7]
[403776217,1769533841390,-500.0,0.00035616,7]
[403776219,1769533841399,-500.0,0.00035616,7]
[403776221,1769533841409,-500.0,0.00035616,7]
[403776223,1769533841418,-500.0,0.00035616,7]
[403776225,1769533841427,-600.0,0.00035616,2]
[403776227,1769533841435,-1333.0,0.00035987,2]
[403776229,1769533841444,-615.0,0.00035987,2]
[403776231,1769533841453,-916.0,0.00035987,2]
[403776233,1769533841462,-2442.0,0.00035987,2]
[403776235,1769533841471,-4831.0,0.00035987,2]
[403776237,1769533841480,-600.0,0.00036164,2]
[403776239,1769533841489,-164.68269966,0.00036355,2]
[403776241,1769533841498,-180.64736773,0.00036464,58]
[403776243,1769533841508,-151.0,0.00036584,7]
[403776245,1769533841517,-1000.0,0.000366,120]
[403776247,1769533841526,-600.0,0.00036712,2]
[403776249,1769533841535,-477.66,0.00037126,120]
[403776251,1769533841544,-180.64736773,0.00037788,62]
[403776253,1769533841553,-2000.0,0.000378,2]
[403776255,1769533841562,-2500.0,0.000379,120]
[403776257,1769533841571,-500.0,0.00038,120]
[403776259,1769533841580,-150.0,0.00038,2]
[403776261,1769533841590,-1000.0,0.000382,120]
[403776263,1769533841599,-2717.692,0.00038595,52]
[403776265,1769533841608,-218.326,0.00038595,52]
[403776267,1769533841617,-519.0,0.00038667,21]
[403776269,1769533841626,-1000.0,0.00038762,2]
[403776271,1769533841635,-1526.34,0.000388,120]
[403776273,1769533841645,-151.0,0.00038852,30]
[403776275,1769533841654,-1333.0,0.00038987,2]
[403776277,1769533841663,-615.0,0.00038987,2]
[403776279,1769533841672,-916.0,0.00038987,2]
[403776281,1769533841681,-439.165,0.00038987,2]
[403776283,1769533841691,-4831.0,0.00038987,2]
[403776285,1769533841700,-430.0,0.00039,120]
[403776287,1769533841709,-300.0,0.00039046,2]
[403776290,1769533841723,-300.0,0.00039046,2]
[403776292,1769533841732,-180.64736773,0.00039112,66]
[403776294,1769533841741,-301.0,0.000395,2]
[403776296,1769533841750,-307.0,0.000395,2]
[403776298,1769533841760,-500.0,0.00039808,2]
[403776300,1769533841769,-164.68269966,0.00039822,2]
[403776302,1769533841778,-152.0,0.0004,120]
[403776304,1769533841788,-152.0,0.0004,120]
[403776306,1769533841797,-1361.2,0.00040415,120]
[403776308,1769533841806,-180.64736773,0.00040436,69]
[403776310,1769533841815,-152.0,0.000406,120]
[403776312,1769533841825,-152.0,0.000407,120]
[403776314,1769533841834,-477.66,0.00040838,120]
[403776316,1769533841843,-152.0,0.00040933,3]
[403776318,1769533841852,-1361.2,0.00041069,120]
[403776320,1769533841862,-151.0,0.00041119,120]
[403776322,1769533841871,-152.0,0.000412,120]
[403776324,1769533841880,-152.0,0.000414,120]
[403776325,1769533841889,-2000.0,0.000415,2]
[403776328,1769533841899,-2831.0,0.00041718,11]
[403776330,1769533841908,-1361.2,0.00041723,120]
[403776331,1769533841917,-839.0,0.00041743,11]
[403776333,1769533841927,-2831.0,0.00041743,11]
[403776336,1769533841936,-2831.0,0.00041754,11]
[403776338,1769533841946,-345.84173181,0.00041758,60]
[403776340,1769533841955,-610.10580885,0.00041758,60]
[403776342,1769533841964,-912.681802,0.00041758,60]
[403776343,1769533841973,-1234.8864,0.00041758,60]
[403776345,1769533841982,-180.64736773,0.0004176,73]
[403776347,1769533841991,-837.0,0.00041762,11]
[403776349,1769533842000,-837.0,0.00041776,11]
[403776351,1769533842010,-2831.0,0.00041783,11]
[403776353,1769533842019,-2831.0,0.00041783,11]
[403776356,1769533842028,-152.0,0.000418,120]
[403776358,1769533842037,-151.2586149,0.000419,120]
[403776360,1769533842046,-615.0,0.00041987,2]
[403776362,1769533842055,-916.0,0.00041987,2]
[403776364,1769533842064,-4831.0,0.00041987,2]
[403776366,1769533842073,-500.0,0.00042,120]
[403776368,1769533842082,-2831.0,0.00042052,16]
[403776370,1769533842091,-2831.0,0.00042074,16]
[403776372,1769533842101,-3511.92591962,0.00042085,7]
[403776374,1769533842110,-152.0,0.000421,120]
[403776376,1769533842119,-152.0,0.000423,120]
[403776378,1769533842128,-2831.0,0.00042346,16]
[403776380,1769533842138,-1361.2,0.00042377,120]
[403776382,1769533842148,-2831.0,0.0004243,16]
[403776384,1769533842157,-500.0,0.00042438,120]
[403776386,1769533842166,-484.83,0.00042466,30]
[403776388,1769533842175,-484.83,0.00042466,30]
[403776390,1769533842184,-484.83,0.00042466,30]
[403776392,1769533842193,-484.83,0.00042466,30]
[403776393,1769533842203,-484.83,0.00042466,30]
[403776396,1769533842213,-1139.862,0.000425,120]
[403776398,1769533842222,-500.0,0.000425,120]
[403776400,1769533842233,-929.34345856,0.00042535,120]
[403776402,1769533842242,-151.0,0.00042566,10]
[403776404,1769533842251,-151.0,0.00042566,10]
[403776406,1769533842265,-151.0,0.00042566,10]
[403776408,1769533842275,-151.0,0.00042566,10]
[403776410,1769533842284,-151.0,0.00042566,10]
[403776412,1769533842294,-151.0,0.00042566,10]
[403776414,1769533842303,-151.0,0.00042566,10]
[403776416,1769533842311,-151.0,0.00042566,10]
[403776418,1769533842320,-151.0,0.00042566,10]
[403776420,1769533842333,-239.0,0.00042566,10]
[403776422,1769533842342,-500.0,0.00042575,120]
[403776424,1769533842351,-150.0,0.00042603,30]
[403776426,1769533842360,-468.85,0.00042603,30]
[403776428,1769533842370,-558.47,0.00042603,30]
[403776430,1769533842381,-359.42,0.00042603,30]
[403776432,1769533842390,-1231.93,0.00042603,30]
[403776434,1769533842400,-1231.93,0.00042603,30]
[403776436,1769533842409,-1231.93,0.00042603,30]
[403776438,1769533842418,-172.27,0.00042603,30]
[403776440,1769533842428,-1231.93,0.00042603,30]
[403776442,1769533842438,-172.27,0.00042603,30]
[403776444,1769533842447,-468.85,0.00042603,30]
[403776446,1769533842457,-174.36,0.00042603,30]
[403776448,1769533842466,-468.85,0.00042603,30]
[403776450,1769533842475,-172.27,0.00042603,30]
[403776452,1769533842485,-2831.0,0.00042679,16]
[403776454,1769533842494,-2831.0,0.00042703,16]
[403776457,1769533842503,-2831.0,0.00042707,16]
[403776459,1769533842512,-500.0,0.00042712,120]
[403776460,1769533842521,-152.0,0.000428,120]
[403776462,1769533842531,-500.0,0.00042849,120]
[403776464,1769533842540,-500.0,0.00042876,120]
[403776466,1769533842549,-500.0,0.00042876,120]
[403776469,1769533842558,-500.0,0.00042876,120]
[403776471,1769533842568,-500.0,0.00042876,120]
[403776473,1769533842578,-150.0,0.00042877,30]
[403776475,1769533842587,-150.0,0.00042877,30]
[403776476,1769533842596,-150.0,0.00042877,30]
[403776478,1769533842605,-152.0,0.000429,120]
[403776480,1769533842614,-153.79,0.00042904,30]
[403776482,1769533842623,-150.0,0.00042904,30]
[403776485,1769533842634,-150.0,0.00042904,30]
[403776487,1769533842643,-23518.75301099,0.00042933,30]
[403776488,1769533842652,-391.43608,0.0004295,120]
[403776490,1769533842661,-391.43608,0.0004295,120]
[403776492,1769533842670,-391.43609,0.0004295,120]
[403776494,1769533842679,-391.43608,0.0004295,120]
[403776496,1769533842689,-391.43609,0.0004295,120]
[403776498,1769533842698,-500.0,0.00042986,120]
[403776500,1769533842708,-500.0,0.00043,120]
[403776503,1769533842718,-1361.2,0.0004303,120]
[403776505,1769533842727,-180.64736773,0.00043084,97]
[403776507,1769533842736,-255555.0,0.00043116,120]
[403776509,1769533842746,-461.61637591,0.00043116,2]
[403776510,1769533842755,-1000.0,0.00043117,2]
[403776512,1769533842765,-500.0,0.00043123,120]
[403776515,1769533842774,-461.6163759,0.00043151,2]
[403776517,1769533842783,-200.0,0.00043177,120]
[403776520,1769533842792,-151.0,0.00043177,120]
[403776523,1769533842801,-151.0,0.00043177,120]
[403776526,1769533842811,-162030.82242495,0.0004318,30]
[403776561,1769533843092,-151.0,0.00017136,2]
[403776563,1769533843102,-292.49,0.00035987,2]
[403776565,1769533843114,-6277.51,0.00035987,2]
[403776567,1769533843123,-1010233.75807505,0.0004318,30]
[403776569,1769533843135,-461.6163759,0.00043186,2]
[403776571,1769533843144,-845.77,0.000432,14]
[403776573,1769533843153,-500.0,0.00043216,120]
[403776575,1769533843163,-500.0,0.00043216,120]
[403776577,1769533843173,-500.0,0.00043216,120]
[403776579,1769533843182,-150.0,0.00043216,20]
[403776581,1769533843191,-461.6163759,0.0004322,2]
[403776583,1769533843200,-461.6163759,0.00043255,2]
[403776585,1769533843209,-500.0,0.0004326,120]
[403776587,1769533843218,-164.68269966,0.0004329,11]
[403776589,1769533843227,-1327.39705548,0.0004329,2]
[403776591,1769533843236,-461.6163759,0.0004329,2]
[403776593,1769533843245,-193.22414918,0.0004329,2]
[403776595,1769533843258,-865.64449604,0.000433,120]
[403776597,1769533843267,-500.0,0.00043312,30]
[403776599,1769533843277,-800.0,0.00043333,16]
[403776601,1769533843286,-800.0,0.00043333,16]
[403776603,1769533843295,-800.0,0.00043333,16]
[403776605,1769533843304,-800.0,0.00043333,16]
[403776607,1769533843313,-800.0,0.00043333,16]
[403776609,1769533843322,-800.0,0.00043333,16]
[403776611,1769533843333,-800.0,0.00043333,16]
[403776613,1769533843342,-800.0,0.00043333,16]
[403776615,1769533843351,-2147.53797446,0.00043334,2]
[403776617,1769533843360,-202.68824034,0.00043378,30]
[403776619,1769533843369,-161.87975661,0.00043378,30]
[403776621,1769533843380,-151.0,0.00043386,120]
[403776623,1769533843389,-151.0,0.00043387,120]
[403776625,1769533843399,-391.43608,0.00043387,120]
[403776627,1769533843408,-151.0,0.00043387,120]
[403776629,1769533843417,-50000.0,0.00043389,56]
[403776631,1769533843426,-50000.0,0.00043389,57]
[403776633,1769533843435,-50000.0,0.00043389,54]
[403776635,1769533843444,-50000.0,0.00043389,55]
[403776637,1769533843454,-50000.0,0.00043389,61]
[403776639,1769533843463,-50000.0,0.00043389,62]
[403776641,1769533843472,-50000.0,0.00043389,63]
[403776643,1769533843481,-69014.71899634,0.0004339,2]
[403776645,1769533843490,-994.77282687,0.0004339,120]
[403776647,1769533843499,-50000.0,0.0004339,60]
[403776649,1769533843509,-151.0,0.0004339,120]
[403776651,1769533843518,-151.0,0.0004339,120]
[403776653,1769533843528,-151.0,0.0004339,120]
[403776655,1769533843537,-799.0,0.0004339,120]
[403776657,1769533843546,-151.0,0.0004339,120]
[403776659,1769533843555,-151.0,0.0004339,120]
[403776661,1769533843564,-151.0,0.0004339,120]
[403776663,1769533843573,-151.0,0.0004339,120]
[403776665,1769533843583,-151.0,0.0004339,120]
[403776667,1769533843592,-151.0,0.0004339,120]
[403776669,1769533843600,-151.0,0.0004339,120]
[403776671,1769533843609,-151.0,0.0004339,120]
[403776673,1769533843618,-151.0,0.0004339,120]
[403776675,1769533843627,-151.0,0.0004339,120]
[403776677,1769533843637,-151.0,0.0004339,120]
[403776679,1769533843647,-151.0,0.0004339,120]
[403776681,1769533843656,-151.0,0.0004339,60]
[403776683,1769533843665,-151.0,0.0004339,30]